{"text_format":"3","workbook":"xlsx","n_sheets":4,"sheets":["11","10","9","8"],"not_rendered":{"external_links":1,"defined_names":4},"read":"whole","date_system":"1900"}

{"sheet":"11","index":0,"n_rows":47,"n_cols":14,"rows_kept":47}
[]
[null,"Список приглашённых на РЭ ВсОШ по русскому языку  11 класс. 2018-2019 уч.год "]
[]
["№","Муниципалитет","Полное наименование ОУ по уставу","Фамилия","Имя","Отчество","Класс","Дата рождения","Пол","Итоговый балл","Максимальный балл","Статус","Фамилия, имя, отчество педагога, подготовившего участника олимпиады","Полное наименование образовательного учреждения (по уставу)"]
[1,"Набережные Челны","Муниципальное автономное общеобразовательное учреждение \"Лицей № 78 им. А.С. Пушкина\"","Нурмеева","Азалия","Рустамовна",11,"2001-08-27","Ж",49.5,61,"Победитель РЭ ВсОШ 2017/2018 уч.год","Лерман Ирина Викторовна","Муниципальное автономное общеобразовательное учреждение \"Лицей № 78 им. А.С. Пушкина\""]
[2,"Казань","МАОУ «Гимназия-интернат №4»","Вахитова","Алия","Радиковна",11,"2002-04-09","Ж",55.5,61,"Призер РЭ ВсОШ 2017/2018 уч.год","Мингазова Лейсан Садыковна","МАОУ «Гимназия-интернат №4» "]
[3,"Нурлатский","МАОУ \"Средняя общеобразовательная школа №4\" г.Нурлат","Пиксендеева","Анастасия","Геннадьевна",11,"2001-07-14","Ж",53,61,"Призер РЭ ВсОШ 2017/2018 уч.год","Лизунова Наиля Салимхановна","МАОУ \"Средняя общеобразовательная школа №4\" г.Нурлат"]
[4,"Пестречинский","МБОУ «Пестречинская средняя общеобразовательная школа №2\"        ","Ахметшина","Айгуль","Алмазовна",11,"2001-09-26","Ж",49.5,61,"Призер РЭ ВсОШ 2017/2018 уч.год","Гиниятова Раиля Наилевна","МБОУ «Пестречинская средняя общеобразовательная школа №2\"        "]
[5,"Казань","МАОУ «Гимназия №19»","Дуглав","Дарья","Павловна",11,"2000-05-29","Ж",46.5,61,"Призер РЭ ВсОШ 2017/2018 уч.год","Нурутдинова Галия Юнусовна"," МБОУ Лицей №78 Фарватер Приволжского района г. Казани "]
[6,"Бугульминский","МБОУ средняя общеобразовательная школа№ 6   Бугульминского  муниципального  района РТ","Валеева ","Альбина","Маратовна",11,"2001-07-05","Ж",46,61,"Призер РЭ ВсОШ 2017/2018 уч.год","Юсупова Эльвира Хакимжановна ","МБОУ средняя общеобразовательная школа№ 6   Бугульминского  муниципального  района РТ"]
[7,"Заинский","Муниципальное бюджетное общеобразовательное учреждение \"Заинская средняя общеобразовательная школа №2\" Заинского муниципального района Республики Татарстан","Морозова","Дарья","Дмитриевна",11,"2001-03-25","ж",45,61,"Призер РЭ ВсОШ 2017/2018 уч.год","Кузнецова Валентина Александровна","Муниципальное бюджетное общеобразовательное учреждение \"Заинская средняя общеобразовательная школа №2\" Заинского муниципального района Республики Татарстан"]
[8,"Кукморский ","МБОУ «Многопрофильный лицей им. А.М.Булатова п.г.т. Кукмор \" Кукморского муниципального района  Республики Татарстан","Галявиева","Илюза ","Ильнуровна",11,"2001-02-10","Ж",43,61,"Призер РЭ ВсОШ 2017/2018 уч.год","Шигапова Нурфия Габдуллазяновна","МБОУ «Многопрофильный лицей им. А.М.Булатова п.г.т. Кукмор \" Кукморского муниципального района  Республики Татарстан"]
[9,"Казань","МБОУ «Гимназия №122 имени Ж.А Зайцевой»","Исупова","Диана","Радиковна",11,"2000-11-24","Ж",38,61,"Призер РЭ ВсОШ 2017/2018 уч.год","Белянина Татьяна Александровна","МБОУ «Гимназия №122 имени Ж.А Зайцевой» "]
[10,"Набережные Челны","Муниципальное автономное общеобразовательное учреждение \"Гимназия № 76\"","Ботвина  ","Полина","Владиславовна",11,"2001-06-14","Ж",37.5,61,"Призер РЭ ВсОШ 2017/2018 уч.год","Фазлыева Светлана Владимировна","Муниципальное автономное общеобразовательное учреждение \"Гимназия № 76\""]
[11,"Мамадышский","Муниципальное бюджетное общеобразовательное учреждение \"Средняя общеобразовательная школа №4 города Мамадыш\" Республики Татарстан","Гайфутдинова ","Алия","Айратовна",11,"2001-07-27","Ж",35.5,61,"Призер РЭ ВсОШ 2017/2018 уч.год","Шишкина Ирина Мстиславовна","Муниципальное бюджетное общеобразовательное учреждение \"Средняя общеобразовательная школа №4 города Мамадыш\" Республики Татарстан"]
[12,"Бугульминский","МБОУ лицей №2 Бугульминского муниципального района Республики Татарстан","Звегинцева ","Арина","Анатольевна",11,"2001-03-27","Ж",34,61,"Призер РЭ ВсОШ 2017/2018 уч.год","Карсакова Эльна Борисовна","МБОУ лицей №2 Бугульминского муниципального района Республики Татарстан"]
[13,"Чистопольский","МБОУ \"Гимназия №3\"","Логинова","Анастасия","Александровна",11,"25.09.2001","ж",31,61,"Призер РЭ ВсОШ 2017/2018 уч.год","Новикова Ольга Михайловна","МБОУ \"Гимназия №3\""]
[14,"Казань","МБОУ «Гимназия №125»","Сафина","Алиса","Шамилевна",11,"2001-03-23","Ж",52,61,null,"Ахмерова Светлана Вадимировна","МБОУ «Гимназия №125» "]
[15,"Верхнеуслонский район","Государственное автономное общеобразовательное учреждение \"Лицей Иннополис\"","Антоненко","Михаил","Юрьевич",11,"2001-02-26","М",51,61,null,"Тихонов Алексей Анатольевич","Государственное автономное общеобразовательное учреждение \"Лицей Иннополис\""]
[16,"Нижнекамский","МБОУ «Гимназия №22» Нижнекамского муниципального района Республики Татарстан","Шарипова","Динара","Ильнуровна",11,"2001-02-23","Ж",50,61,null,"Сергеева Ирина Владиленовна","МБОУ «Гимназия №22» Нижнекамского муниципального района Республики Татарстан"]
[17,"Набережные Челны","Муниципальное автономное общеобразовательное учреждение \"Лицей № 78 им. А.С. Пушкина\"","Саетова ","Гузель","Раилевна",11,"2001-06-12","Ж",48.5,61,null,"Лерман Ирина Викторовна","Муниципальное автономное общеобразовательное учреждение \"Лицей № 78 им. А.С. Пушкина\""]
[18,"Алькеевский","МБОУ \"Базарно-Матакская средняя общеобразовательная школа\" Алькеевского МР РТ","Галлямова","Миляуша","Раисовна",11,"2001-11-12","ж",47.5,61,null,"Хасанова Ляйсан Рафаэлевна","МБОУ \"Базарно-Матакская средняя общеобразовательная школа\" Алькеевского МР РТ"]
[19,"Казань","МБОУ «Гимназия №125»","Галимова","Гузель","Маратовна",11,"2001-01-14","Ж",45,61,null,"Ахмерова Светлана Владимировна"," МБОУ «Гимназия №125» "]
[20,"Верхнеуслонский район","Государственное автономное общеобразовательное учреждение \"Лицей Иннополис\"","Тиглев","Илья","Глебович",11,"2001-10-14","М",45,61,null,"Тихонов Алексей Анатольевич","Государственное автономное общеобразовательное учреждение \"Лицей Иннополис\""]
[21,"Сабинский","Муниципальное бюджетное общеобразовательное учреждение \"Средняя общеобразовательная школа-интернат с углубленным изучением отдельных предметов для одаренных детей  Сабинского муниципального района Республики Татарстан\"","Кабиров","Булат","Василович",11,"29.08.2001","М",44.5,61,null,"Байкеева Гульнур Габделгазизовна","Муниципальное бюджетное общеобразовательное учреждение \"Средняя общеобразовательная школа-интернат с углубленным изучением отдельных предметов для одаренных детей  Сабинского муниципального района Республики Татарстан\""]
[22,"Зеленодольский","МБОУ «Гимназия №3» ЗМР РТ","Мухина","Дарья","Вадимовна",11,"2001-06-01","Ж",44.5,61,null,"Леонтьева Евгения Михайловна ","МБОУ «Гимназия №3» ЗМР РТ"]
[23,"Ютазинский","МБОУ «Уруссинская гимназия\" Ютазинского муниципального района Республики Татарстан","Баротова","Нозанин","Сухробовна",11,"31.12..2001","ж",43,61,null,"Зиннатуллина Рамиля Халимовна","МБОУ «Уруссинская гимназия\" Ютазинского муниципального района Республики Татарстан"]
[24,"Набережные Челны","Негосударственное (частное) экспериментальное общеобразовательное учреждение \"Гимназия им. В.В. Давыдова\"","Кузьмицкая  ","Полина","Владимировна",11,"2002-01-04","Ж",43,61,null,"Салимова Фарида Рашидовна","Негосударственное (частное) экспериментальное общеобразовательное учреждение \"Гимназия им. В.В. Давыдова\""]
[25,"Зеленодольский","МБОУ «Гимназия №3» ЗМР РТ","Сингатуллина","Карина","Айратовна",11,"2001-04-01","Ж",42.5,61,null,"Леонтьева Евгения Михайловна","МБОУ «Гимназия №3» ЗМР РТ"]
[26,"Сабинский","Муниципальное бюджетное общеобразовательное учреждение \"Средняя общеобразовательная школа-интернат с углубленным изучением отдельных предметов для одаренных детей  Сабинского муниципального района Республики Татарстан\"","Багманов ","Тимур","Вадимович",11,"25.10.2000","М",41.5,61,null,"Байкеева Гульнур Габделгазизовна","Муниципальное бюджетное общеобразовательное учреждение \"Средняя общеобразовательная школа-интернат с углубленным изучением отдельных предметов для одаренных детей  Сабинского муниципального района Республики Татарстан\""]
[27,"Казань","ГБМБУ «КФУ каршындагы 2 нче татар гимназиясе» МБОУ «Татарская гимназия №2 при КФУ»","Корниенко ","Рената ","Владимировна",11,"2001-11-30","Ж",41,61,null,"Гайнутдинова Алина Равилевна","  ГБМБУ «КФУ каршындагы 2 нче татар гимназиясе» МБОУ «Татарская гимназия №2 при КФУ» "]
[28,"Верхнеуслонский район","Государственное автономное общеобразовательное учреждение \"Лицей Иннополис\"","Хуснутдинова","Амина","Ренатовна",11,"2001-05-29","ж",41,61,null,"Тихонов Алексей Анатольевич","Государственное автономное общеобразовательное учреждение \"Лицей Иннополис\""]
[29,"Казань","ГБМБУ «КФУ каршындагы 2 нче татар гимназиясе» МБОУ «Татарская гимназия №2 при КФУ»","Багавиев ","Рамиль ","Радифович",11,"2002-01-31","М",40.5,61,null,"Асафтий Алина Рауилевна"," ГБМБУ «КФУ каршындагы 2 нче татар гимназиясе» МБОУ «Татарская гимназия №2 при КФУ» "]
[30,"Казань","МБОУ «Средняя общеобразовательная школа № 9 с углубленным изучением английского языка»","Ляукина ","Татьяна","Андреевна",11,"2001-08-02","Ж",40.5,61,null,"Гараева Евгения Ильсуровна","   МБОУ «Средняя общеобразовательная школа № 9 с углубленным изучением английского языка» "]
[31,"Ютазинский","МБОУ «Уруссинская гимназия\" Ютазинского муниципального района Республики Татарстан","Гарифуллина","Эмилия","Зуфаровна",11,"2001-03-20","ж",40,61,null,"Зиннатуллина Рамиля Халимовна","МБОУ «Уруссинская гимназия\" Ютазинского муниципального района Республики Татарстан"]
[32,"Казань","МБОУ «Гимназия №102 им. М.С.Устиновой»","Морозова ","Дарья","Олеговна",11,"2001-02-26","Ж",40,61,null,"Логиновских Лариса Николаевна","МБОУ «Гимназия №102 им. М.С.Устиновой» "]
[33,"Набережные Челны","Муниципальное бюджетное общеобразовательное учреждение \"Средняя общеобразовательная школа № 45  углубленным изучением отдельных предметов\"","Волошина","Алиса","Федоровна",11,"2001-07-17","Ж",39.5,61,null,"Чурагулова Рамиля Мутагаровна ","Муниципальное бюджетное общеобразовательное учреждение \"Средняя общеобразовательная школа № 45  углубленным изучением отдельных предметов\""]
[34,"Набережные Челны","Муниципальное бюджетное общеобразовательное учреждение \"Средняя общеобразовательная школа №7\"","Костромина","Людмила","Васильевна",11,"2001-05-24","Ж",39,61,null,"Фатеева Эмма Илусовна","Муниципальное бюджетное общеобразовательное учреждение \"Средняя общеобразовательная школа №7\""]
[35,"Казань","МБОУ «Средняя общеобразовательная школа № 9 с углубленным изучением английского языка»","Морозова","Карина","Эдуардовна",11,"2000-10-20","Ж",39,61,null,"Гимранова Татьяна Александровна","  МБОУ «Средняя общеобразовательная школа № 9 с углубленным изучением английского языка» "]
[36,"Казань","Лицей-интернат «IТ-лицей К(П)ФУ»","Нургалеев ","Ильдар","Айратович",11,"2001-08-03","М",39,61,null,"Бурганова Фарида Фоатовна","Лицей №35 - образовательный центр «Галактика» "]
[37,"Альметьевский","Муниципальное бюджетное общеобразовательное учреждение «Гимназия №1 им. Р. Фахретдина» г.Альметьевска Республики Татарстан","Сайбель ","Елена","Андреевна",11,"2001-05-16","Ж ",39,61,null,"Гуро Лариса Амирзяновна","Муниципальное бюджетное общеобразовательное учреждение «Гимназия №1 им. Р. Фахретдина» г.Альметьевска Республики Татарстан"]
[38,"Нижнекамский","МБОУ «Гимназия №22» Нижнекамского муниципального района Республики Татарстан","Ситдиков ","Булат","Камилевич",11,"2001-02-28","М",39,61,null,"Сергеева Ирина Владиленовна","МБОУ «Гимназия №22» Нижнекамского муниципального района Республики Татарстан"]
[39,"Алексеевский","Муниципальное бюджетное общеобразовательное учреждение Алексеевская средняя общеобразовательная школа №3 им. Г.С. Боровикова Алексеевского муниципального района Республики Татарстан","Сунгатуллина","Гульфиназ","Айнуровна",11,"2001-09-09","Ж",39,61,null,"Евланова Александра Федоровна","Муниципальное бюджетное общеобразовательное учреждение Алексеевская средняя общеобразовательная школа №3 им. Г.С. Боровикова Алексеевского муниципального района Республики Татарстан"]
[40,"Казань","МАОУ «Гимназия-интернат №4»","Мингалиева","Инара","Рафилевна",11,"2002-03-15","Ж",38,61,null,"Еналиева Альбина Шагидулловна","МАОУ «Гимназия-интернат №4» "]
[41,"Нижнекамский","МБОУ «Гимназия №32» г. Нижнекамска Республики Татарстан","Настина ","Аделя","Игоревна",11,"2001-08-08","Ж",38,61,null,"Пузикова Ольга Сергеевна","МБОУ «Гимназия №32» г. Нижнекамска Республики Татарстан"]
[42,"Зеленодольский","Лицей-интернат для одаренных детей с углубленным изучением химии - филиал ФГБОУ ВО «КНИТУ» ЗМР РТ","Свиридов","Алексей","Павлович",11,"2001-09-13","М",38,61,null,"Гарипова Ильмира Дамировна","Лицей-интернат для одаренных детей с углубленным изучением химии - филиал ФГБОУ ВО «КНИТУ» ЗМР РТ"]
[43,"Лениногорский","МБОУ \"Лицей №12 г.Лениногорска\" МО \"Лениногорский муниципальный район\" РТ","Тухватуллина","Ильвина","Рафисовна",11,"2001-07-04","ж",38,61,null,"Родионова Елена Викторовна","МБОУ \"Лицей №12 г.Лениногорска\" МО \"Лениногорский муниципальный район\" РТ"]

{"sheet":"10","index":1,"n_rows":39,"n_cols":14,"rows_kept":39}
[]
[null,"Список приглашённых на РЭ ВсОШ по русскому языку  10 класс. 2018-2019 уч.год "]
[]
["№","Муниципалитет","Полное наименование ОУ по уставу","Фамилия","Имя","Отчество","Класс","Дата рождения","Пол","Итоговый балл","Максимальный балл","Статус","Фамилия, имя, отчество педагога, подготовившего участника олимпиады","Полное наименование образовательного учреждения (по уставу)"]
[1,"Зеленодольский","Лицей-интернат для одаренных детей с углубленным изучением химии - филиал ФГБОУ ВО «КНИТУ» ЗМР РТ","Гараев","Руслан","Айратович",10,"2003-06-23","М",40.5,61,"Победитель РЭ ВсОШ 2017/2018 уч.год","Валеева Люция Равилевна","Лицей-интернат для одаренных детей с углубленным изучением химии - филиал ФГБОУ ВО «КНИТУ» ЗМР РТ"]
[2,"Набережные Челны","Муниципальное автономное учреждение \"Лицей № 78 им. А. С. Пушкина\"","Шабалина ","Виктория ","Андреевна",10,"2002-09-19","ж",55,61,"Призер РЭ ВсОШ 2017/2018 уч.год","Лерман Ирина Викторовна","Муниципальное автономное учреждение \"Лицей № 78 им. А. С. Пушкина\""]
[3,"Казань","МАОУ «Лицей №131»","Лукоянова","Татьяна","Леонидовна",10,"2002-01-21","Ж",49.5,61,"Призер РЭ ВсОШ 2017/2018 уч.год","Жаркова Светлана Барисовна","МАОУ «Средняя общеобразовательная школа №39 с углубленным изучением английского языка» "]
[4,"Казань","МАОУ «Гимназия №19»","Жиганшина","Кира","Аязовна",10,"2002-01-18","Ж",46.5,61,"Призер РЭ ВсОШ 2017/2018 уч.год","Краснова Юлия Валерьевна","                                                                                                                                                                     Лицей-интернат «IТ-лицей К(П)ФУ» "]
[5,"Набережные Челны","Муниципальное автономное общеобразовательное учреждение города Набережные Челны \"Гимназия № 76\"","Гильмутдинова","Лия","Рафисовна",10,"2002-07-08","ж",37,61,"Призер РЭ ВсОШ 2017/2018 уч.год","Зиангирова Эльвира Минсабировна","Муниципальное автономное общеобразовательное учреждение города Набережные Челны \"Гимназия № 76\""]
[6,"Актанышский","МБОУ \"Актанышская СОШ № 2 с углубленным изучением отдельных предметов\"","Мирзагаянова","Эльвина","Марселевна",10,"2001-11-12","ж",37,61,"Призер РЭ ВсОШ 2017/2018 уч.год","Белоусова Мавлида Идрисовна","МБОУ \"Актанышская СОШ № 2 с углубленным изучением отдельных предметов\""]
[7,"Лаишевский","Муниципальное бюджетное общеобразовательное учреждение Песчано-Ковалинская средняя общеобразовательная школа Лаишевского муниципального района Республики Татарстан","Субханкулова","Алсу","Рафхатовна",10,"2003-03-10","ж",37,61,"Призер РЭ ВсОШ 2017/2018 уч.год","Павлова Татьяна Дмитриевна","Муниципальное бюджетное общеобразовательное учреждение Песчано-Ковалинская средняя общеобразовательная школа Лаишевского муниципального района Республики Татарстан"]
[8,"Казань","Лицей-интернат «IТ-лицей К(П)ФУ»","Рубежова","Наталия","Андреевна",10,"2003-10-30","Ж",36.5,61,"Призер РЭ ВсОШ 2017/2018 уч.год","Панищева Светлана Николаевна"," МБОУ Лицей №78 Фарватер Приволжского района г. Казани "]
[9,"Бугульминский","МБОУ средняя общеобразовательная школа №3   с углубленным изучением отдельных предметов Бугульминского муниципального района","Борисова ","Екатерина"," Андреевна",10,"2002-01-30","Ж",35,61,"Призер РЭ ВсОШ 2017/2018 уч.год","Скопина Свентлана Геннадьевна","МБОУ средняя общеобразовательная школа №3   с углубленным изучением отдельных предметов Бугульминского муниципального района"]
[10,"Казань","МБОУ «Гимназия №122 имени Ж.А Зайцевой»","Шакирова","Рената","Ильдаровна",10,"2001-11-10","Ж",27.5,61,"Призер РЭ ВсОШ 2017/2018 уч.год","Белянина Татьяна Александровна","МБОУ «Гимназия №122 имени Ж.А Зайцевой» "]
[11,"Бугульминский","МБОУ лицей №2 Бугульминского муниципального района Республики Татарстан","Симонова ","Александра ","Николаевна",10,"2002-01-23","Ж",26.5,61,"Призер РЭ ВсОШ 2017/2018 уч.год","Щербинина Светлана Александровна","МБОУ лицей №2 Бугульминского муниципального района Республики Татарстан"]
[12,"Казань","МБОУ \"Лицей №145\" Авиастроительного района г. Казани","Козловская","Ирина","Витальевна",10,"05.12.2001","ж","-",61,"Призер РЭ ВсОШ 2017/2018 уч.год","Носкова Татьяна Николаевна","МБОУ \"Лицей №145\" Авиастроительного района г. Казани"]
[13,"Набережные Челны","МАОУ «Лицей №78 имени А.С.Пушкина» г. Набережные Челны","Саттарова","Лейла","Саматовна",10,"2002-04-08","Ж","-",61,"Призер РЭ ВсОШ 2017/2018 уч.год","Лерман Ирина Викторовна","МАОУ «Лицей №78 имени А.С.Пушкина» г. Набережные Челны"]
[14,"Нижнекамский","МБОУ «Гимназия №25» г. Нижнекамска Республики Татарстан","Хрущева","Дарья","Максимовна",10,"2001-12-26","Ж","-",61,"Призер РЭ ВсОШ 2017/2018 уч.год","Абдулвалиева Халида Файзуллаевна","МБОУ «Гимназия №25» г. Нижнекамска Республики Татарстан"]
[15,"Верхнеуслонский район","Государственное автономное общеобразовательное учреждение \"Лицей Иннополис\"","Алтынбаева","Росина","Ришатовна",10,"2003-03-12","ж",49,61,null,"Тихонова Татьяна Николаевна","Государственное автономное общеобразовательное учреждение \"Лицей Иннополис\""]
[16,"Верхнеуслонский район","Государственное автономное общеобразовательное учреждение \"Лицей Иннополис\"","Егорова","Ирина","Анатольевна",10,"2002-07-04","ж ",49,61,null,"Тихонова Татьяна Николаевна","Государственное автономное общеобразовательное учреждение \"Лицей Иннополис\""]
[17,"Казань","МБОУ «Лицей №83»","Елагина","Анна","Александровна    ",10,"2002-02-04","Ж",46.5,61,null,"Сабирова Римма  Александровна","                                                                                                                                МБОУ «Средняя общеобразовательная школа №69» "]
[18,"Казань","МАОУ «Гимназия №19»","Латыпова","Аделина","Ильнуровна",10,"2002-07-18","Ж",46.5,61,null,"Краснова Юлия Валерьевна","                                                                                                                                                                    Лицей-интернат «IТ-лицей К(П)ФУ» "]
[19,"Казань","Муниципальное автономное общеобразовательное учреждение для детей, проявивших выдающиеся способности «Средняя общеобразовательная школа-интернат «Специализированный олимпиадно-научный центр «СОлНЦе»","Минвалеева","Фатима","Руслановна",10,"2002-05-16","Ж",45,61,null,"Нугманова Гузель Шамилевна","Муниципальное автономное общеобразовательное учреждение для детей, проявивших выдающиеся способности «Средняя общеобразовательная школа-интернат «Специализированный олимпиадно-научный центр «СОлНЦе»"]
[20,"Ютазинский","МБОУ «Уруссинская гимназия\" Ютазинского муниципального района Республики Татарстан","Ковалева","Аделина","Андреевна",10,"2002-09-18","ж",44.5,61,null,"Зиннатуллина Рамиля Халимовна","МБОУ «Уруссинская гимназия\" Ютазинского муниципального района Республики Татарстан"]
[21,"Алькеевский","МБОУ \"Базарно-Матакская средняя общеобразовательная школа\" Алькеевского МР РТ","Карманаева","Дарья","Олеговна",10,"2002-01-19","ж",43,61,null,"Хасанова Ляйсан Рафаэлевна","МБОУ \"Базарно-Матакская средняя общеобразовательная школа\" Алькеевского МР РТ"]
[22,"Казань","МБОУ «Гимназия №122 имени Ж.А Зайцевой»","Травина","Дарья","Владимировна",10,"2002-02-28","Ж",42,61,null,"Козина Елена Евгеньевна"," МБОУ «Гимназия №122 имени Ж.А Зайцевой» "]
[23,"Заинский","Муниципальное бюджетное общеобразовательное учреждение \"Заинская средняя общеобразовательная школа №4\" Заинского муниципального района Республики Татарстан","Тумашева","Александра","Петровна",10,"2002-07-23","ж",40.5,61,null,"Борисенко Роза Ильгатовна","Муниципальное бюджетное общеобразовательное учреждение \"Заинская средняя общеобразовательная школа №4\" Заинского муниципального района Республики Татарстан"]
[24,"Алексеевский","Муниципальное бюджетное общеобразовательное учреждение Алексеевская средняя общеобразовательная школа №3 им. Г.С. Боровикова Алексеевского муниципального района Республики Татарстан","Пашагина","Валерия","Сергеевна",10,"2002-05-06","Ж",40,61,null,"Евланова Александра Федоровна","Муниципальное бюджетное общеобразовательное учреждение Алексеевская средняя общеобразовательная школа №3 им. Г.С. Боровикова Алексеевского муниципального района Республики Татарстан"]
[25,"Набережные Челны","Муниципальное автономное общеобразовательное учреждение  гимназия № 57\"","Бычкова","Ксения","Сергеевна",10,"2002-09-24","ж",39.5,61,null,"Зиятдинова Альфия Ибрагимовна","Муниципальное автономное общеобразовательное учреждение  гимназия № 57\""]
[26,"Казань","МБОУ «Гимназия №122 имени Ж.А Зайцевой»","Кадырова","Элина","Рамилевна",10,"2002-03-18","Ж",39.5,61,null,"Белянина Татьяна Александровна","МБОУ «Гимназия №122 имени Ж.А Зайцевой» "]
[27,"Набережные Челны","Муниципальное автономное общеобразовательное учреждение \"Средняя общеобразовательная школа № 1\"","Капитонова","Анна","Анатольевна",10,"2002-01-15","ж",39,61,null,"Закирова Ирина Андреевна","Муниципальное автономное общеобразовательное учреждение \"Средняя общеобразовательная школа № 1\""]
[28,"Казань","Муниципальное бюджетное общеобразовательное учреждение «Лицей № 177»","Самохина","Маргарита","Игоревна",10,"2002-04-26","Ж",39,61,null,"Дасова Рамиля Зинатулловна","Муниципальное бюджетное общеобразовательное учреждение «Лицей № 177» "]
[29,"Бугульминский","МБОУ лицей №2 Бугульминского муниципального района Республики Татарстан","Баркалова ","Дарья","Андреевна",10,"2002-04-30","Ж",38,61,null,"Щербинина Светлана Александровна","МБОУ лицей №2 Бугульминского муниципального района Республики Татарстан"]
[30,"Нижнекамский","МБОУ «Лицей №35» г. Нижнекамска Республики Татарстан","Никифоров","Дмитрий","Николаевич",10,"2002-02-23","Ж",38,61,null,"Казанкова Валентина Гавриловна","МБОУ «Лицей №35» г. Нижнекамска Республики Татарстан"]
[31,"Нижнекамский","МБОУ «Средняя общеобразовательная школа №33 с углубленным изучением английского языка» г. Нижнекамска Республики Татарстан","Лахомова","Инна","Павловна",10,"2002-01-15","Ж",37.5,61,null,"Шавалеева Рушания Мусавировна","МБОУ «Средняя общеобразовательная школа №33 с углубленным изучением английского языка» г. Нижнекамска Республики Татарстан"]
[32,"Набережные Челны","Муниципальное бюджетное общеобразовательное учреждение \"Средняя общеобразовательная школа №7\"","Селюгина ","Анна","Евгеньевна",10,"2001-12-06","ж",37.5,61,null,"Шарифуллина Лариса Владимировна","Муниципальное бюджетное общеобразовательное учреждение \"Средняя общеобразовательная школа №7\""]
[33,"Казань","МАОУ «Гимназия-интернат №4»","Валетова","Аделина","Юрьевна",10,"2003-10-01","Ж",37,61,null,"Мингазова Лейсан Садыйковна","МАОУ «Гимназия-интернат №4» "]
[34,"Казань","МАОУ «Лицей №131»","Слеcарева","Юлия","Витальевна",10,"2002-07-18","Ж",37,61,null,"Косковская Елена Евгеньевна","Муниципиальное бюджетное общеобразовательное учреждение «Татарская гимназия №1 им. Г. Тукая» "]
[35,"Пестречинский","МБОУ «Пестречинская средняя общеобразовательная школа № 1        с углубленным изучением отдельных предметов\" ","Хрущева","Полина","Павловна",10,"2002-05-30","Ж",37,61,null,"Фурсова Татьяна Николаевна","МБОУ «Пестречинская средняя общеобразовательная школа № 1   с углубленным изучением отдельных предметов\" "]

{"sheet":"9","index":2,"n_rows":42,"n_cols":14,"rows_kept":42}
[]
[null,"Список приглашённых на РЭ ВсОШ по русскому языку  9 класс. 2018-2019 уч.год "]
[]
["№","Муниципалитет","Полное наименование ОУ по уставу","Фамилия","Имя","Отчество","Класс","Дата рождения","Пол","Итоговый балл","Максимальный балл","Статус","Фамилия, имя, отчество педагога, подготовившего участника олимпиады","Полное наименование образовательного учреждения (по уставу)"]
[1,{"$f":"'[1]8 кл'!B7","v":"Набережные Челны"},{"$f":"'[1]8 кл'!C7","v":"МАОУ  города Набережные Челны «Гимназия №57»"},{"$f":"'[1]8 кл'!D7","v":"Низамова"},{"$f":"'[1]8 кл'!E7","v":"Элина"},{"$f":"'[1]8 кл'!F7","v":"Ильсуровна"},{"$f":"'[1]8 кл'!G7","v":8},{"$f":"'[1]8 кл'!H7","v":"2003-05-01"},{"$f":"'[1]8 кл'!I7","v":"жен"},{"$f":"'[1]8 кл'!J7","v":42.5},{"$f":"'[1]8 кл'!K7","v":68},"Победитель РЭ ВсОШ 2017/2018 уч.год",{"$f":"'[1]8 кл'!M7","v":"Калинин Константин Андреевич"},{"$f":"'[1]8 кл'!N7","v":"МАОУ  города Набережные Челны «Гимназия №57»"}]
[2,{"$f":"'[1]8 кл'!B8","v":"Вахитовский-Приволжский"},{"$f":"'[1]8 кл'!C8","v":"МАОУ \"Лицей №131\" Вахитовского района г. Казани"},{"$f":"'[1]8 кл'!D8","v":"Хафизов"},{"$f":"'[1]8 кл'!E8","v":"Ким"},{"$f":"'[1]8 кл'!F8","v":"Русланович"},{"$f":"'[1]8 кл'!G8","v":8},{"$f":"'[1]8 кл'!H8","v":"2003-09-26"},{"$f":"'[1]8 кл'!I8","v":"муж"},{"$f":"'[1]8 кл'!J8","v":42},{"$f":"'[1]8 кл'!K8","v":68},"Призер РЭ ВсОШ 2017/2018 уч.год",{"$f":"'[1]8 кл'!M8","v":"Соловцова Ольга Сергеевна"},{"$f":"'[1]8 кл'!N8","v":"МАОУ \"Лицей №131\" Вахитовского района г. Казани"}]
[3,{"$f":"'[1]8 кл'!B9","v":"Зеленодольский"},{"$f":"'[1]8 кл'!C9","v":"МБОУ \"Лицей №1 Зеленодольского муниципального района Республики Татарстан\""},{"$f":"'[1]8 кл'!D9","v":"Воробьёва"},{"$f":"'[1]8 кл'!E9","v":"Ольга"},{"$f":"'[1]8 кл'!F9","v":"Вадимовна"},{"$f":"'[1]8 кл'!G9","v":8},{"$f":"'[1]8 кл'!H9","v":"2003-02-21"},{"$f":"'[1]8 кл'!I9","v":"жен"},{"$f":"'[1]8 кл'!J9","v":41.5},{"$f":"'[1]8 кл'!K9","v":68},"Призер РЭ ВсОШ 2017/2018 уч.год",{"$f":"'[1]8 кл'!M9","v":"Васюкова Елена Николаевна"},{"$f":"'[1]8 кл'!N9","v":"МБОУ \"Лицей №1 Зеленодольского муниципального района Республики Татарстан\""}]
[4,{"$f":"'[1]8 кл'!B10","v":"Нижнекамский"},{"$f":"'[1]8 кл'!C10","v":"МБОУ «Гимназия №25»  Нижнекамского муниципального района  Республики Татарстан"},{"$f":"'[1]8 кл'!D10","v":"Файзрахманова"},{"$f":"'[1]8 кл'!E10","v":"Рузиля"},{"$f":"'[1]8 кл'!F10","v":"Ильдаровна"},{"$f":"'[1]8 кл'!G10","v":8},{"$f":"'[1]8 кл'!H10","v":"2003-12-07"},{"$f":"'[1]8 кл'!I10","v":"жен"},{"$f":"'[1]8 кл'!J10","v":41.5},{"$f":"'[1]8 кл'!K10","v":68},"Призер РЭ ВсОШ 2017/2018 уч.год",{"$f":"'[1]8 кл'!M10","v":"Кузьмина Галина Алексеевна"},{"$f":"'[1]8 кл'!N10","v":"МБОУ «Гимназия №25»  Нижнекамского муниципального района  Республики Татарстан"}]
[5,{"$f":"'[1]8 кл'!B11","v":"Вахитовский-Приволжский"},{"$f":"'[1]8 кл'!C11","v":"МАОУ \"Лицей №131\" Вахитовского района г. Казани"},{"$f":"'[1]8 кл'!D11","v":"Батракова"},{"$f":"'[1]8 кл'!E11","v":"Елена"},{"$f":"'[1]8 кл'!F11","v":"Владимировна"},{"$f":"'[1]8 кл'!G11","v":8},{"$f":"'[1]8 кл'!H11","v":"2003-03-13"},{"$f":"'[1]8 кл'!I11","v":"жен"},{"$f":"'[1]8 кл'!J11","v":37.5},{"$f":"'[1]8 кл'!K11","v":68},"Призер РЭ ВсОШ 2017/2018 уч.год",{"$f":"'[1]8 кл'!M11","v":"Соловцова Ольга Сергеевна"},{"$f":"'[1]8 кл'!N11","v":"МАОУ \"Лицей №131\" Вахитовского района г. Казани"}]
[6,{"$f":"'[1]8 кл'!B12","v":"Бугульминский"},{"$f":"'[1]8 кл'!C12","v":"МБОУ «Средняя общеобразовательная школа №6 с углубленным изучением отдельных предметов» Бугульминского муниципального района Республики Татарстана"},{"$f":"'[1]8 кл'!D12","v":"Саттарова"},{"$f":"'[1]8 кл'!E12","v":"Аделина"},{"$f":"'[1]8 кл'!F12","v":"Рамилевна"},{"$f":"'[1]8 кл'!G12","v":8},{"$f":"'[1]8 кл'!H12","v":"2003-09-25"},{"$f":"'[1]8 кл'!I12","v":"жен"},{"$f":"'[1]8 кл'!J12","v":36},{"$f":"'[1]8 кл'!K12","v":68},"Призер РЭ ВсОШ 2017/2018 уч.год",{"$f":"'[1]8 кл'!M12","v":"Школьняк Юлия Николаевна"},{"$f":"'[1]8 кл'!N12","v":"МБОУ «Средняя общеобразовательная школа №6 с углубленным изучением отдельных предметов» Бугульминского муниципального района Республики Татарстана"}]
[7,"Верхнеуслонский район","Государственное автономное общеобразовательное учреждение \"Лицей Иннополис\"","Шамсутдинова","Диана","Хамитовна",9,"2004-02-18","ж",43,56,null,"Тихонова Татьяна Николаевна","Государственное автономное общеобразовательное учреждение \"Лицей Иннополис\""]
[8,"Казань","Инженерный лицей КНИТУ-КАИ","Воробьева","Ольга","Вадимовна",9,"2003-02-21","М",41,56,null,"Биктимирова Залия Магьсутовна","Инженерный лицей КНИТУ-КАИ "]
[9,"Казань","МАОУ «Гимназия-интернат №4»","Мингазова","Алия","Маратовна",9,"2003-09-23","Ж",38.5,56,null,"Мингазова Лейсан Садыйковна"," МАОУ «Гимназия-интернат №4» "]
[10,"Казань","МАОУ «Лицей №131»","Осипов","Александр","Федорович",9,"2002-11-11","М",37.5,56,null,"Косковская Елена Евгеньевна","МАОУ «Лицей №131»"]
[11,"Казань","МАОУ «Лицей №131»","Батракова","Елена","Владимировна",9,"2003-03-13","Ж",36.5,56,null,"Соловцова Ольга Сергеевна","МАОУ «Лицей №131»"]
[12,"Заинский","Муниципальное бюджетное общеобразовательное учреждение \"Заинская средняя общеобразовательная школа №6\" Заинского муниципального района Республики Татарстан","Набиуллина","Ляйсан ","Ренатовна",9,"2003-07-05","ж",36.5,56,null,"Кузнецова Елена Александровна","Муниципальное бюджетное общеобразовательное учреждение \"Заинская средняя общеобразовательная школа №6\" Заинского муниципального района Республики Татарстан"]
[13,"Набережные Челны","Муниципальное автономноеобщеобразовательное учреждение \"Гимназия № 57\"","Низамова","Элина","Ильсуровна",9,"2003-05-01","Ж",36.5,56,null,"Калинин  Константин Андреевич","Муниципальное автономноеобщеобразовательное учреждение \"Гимназия № 57\""]
[14,"Казань","Лицей-интернат «IТ-лицей К(П)ФУ»","Андреева","Анастасия","Юрьевна",9,null,"Ж",36,56,null,"Болгарский Константин Георгиевич","IТ-лицей К(П)ФУ» "]
[15,"Набережные Челны","Муниципальное автономное общеобразовательное учреждение \"Гимназия №76\"","Анисимова","Надежда ","Сергеевна",9,"2003-11-18","Ж",36,56,null,"Фазлыева Светлана Владимировна","Муниципальное автономное общеобразовательное учреждение \"Гимназия №76\""]
[16,"Казань","МАОУ «Гимназия №19»","Ревта","Азалия","Вячеславовна",9,"2003-01-10","Ж",36,56,null,"Нурутдинова Галия Юнусовна"," МАОУ «Гимназия № 19» "]
[17,"Бугульминский","МБОУ  \"Гимназия №7\" Бугульминского Муниципального района РТ","Ахметгареева ","Диана","Равильевна",9,"2003-05-09","Ж",35.5,56,null,"Барнатович Ольга Александровна","МБОУ  \"Гимназия №7\" Бугульминского Муниципального района РТ"]
[18,"Казань","МБОУ «Гимназия №122 имени Ж.А Зайцевой»","Залилова","Евгения","Тимуровна",9,"2003-07-03","Ж",35.5,56,null,"Юлия Рустемовна","МБОУ «Гимназия №122 имени Ж.А Зайцевой» "]
[19,"Казань","МАОУ «Гимназия №19»","Ипполитова","Екатерина","Михайловна",9,"2003-07-08","Ж",35.5,56,null,"Нурутдинова Галия Юнусовна","МБОУ «Гимназия № 19» "]
[20,"Лениногорский","МБОУ \"СОШ №7 г.Лениногорска\" МО \"Лениногорский муниципальный район\" РТ","Гафиятуллина","Амина","Маратовна",9,"2002-12-19","ж",35,56,null,"Капралова Гульнара Хамзиевна","МБОУ \"СОШ №7 г.Лениногорска\" МО \"Лениногорский муниципальный район\" РТ"]
[21,"Заинский","Муниципальное бюджетное общеобразовательное учреждение \"Заинская средняя общеобразовательная школа №2\" Заинского муниципального района Республики Татарстан","Горева","Анастасия","Николаевна",9,"2002-10-23","ж",35,56,null,"Кузнецова Валентина Александровна","Муниципальное бюджетное общеобразовательное учреждение \"Заинская средняя общеобразовательная школа №2\" Заинского муниципального района Республики Татарстан"]
[22,"Набережные Челны","Муниципальное автономное общеобразовательное учреждение \"Средняя общеобразовательная школа № 56\"","Баранова","Кристина","Евгеньевна",9,"2003-07-27","Ж",34.5,56,null,"Голубенко Гамиля Наилевна","Муниципальное автономное общеобразовательное учреждение \"Средняя общеобразовательная школа № 56\""]
[23,"Набережные Челны","Муниципальное автономное общеобразовательное учреждение \"Гимназия №76\"","Унтила","Капитолина","Витальевна",9,"2003-09-22","Ж",34.5,56,null,"Фазлыева Светлана Владимировна","Муниципальное автономное общеобразовательное учреждение \"Гимназия №76\""]
[24,"Казань","МБОУ «Средняя общеобразовательная школа №82 с углубленным изучением отдельных предметов»","Нуриева","Камиля","Ильсуровна",9,"2002-12-20","Ж",34,56,null,"Скобелкина Эльмира Мансуровна","                                                                                                                            МБОУ «СОШ 82» "]
[25,"Казань","МБОУ «Гимназия №125»","Алиуллова","Диана","Риняшовна",9,"2002-11-30","Ж",33,56,null,"Хакимова Раиля Ильгизовна","МБОУ «Гимназия №125» "]
[26,"Нижнекамский","МБОУ «Гимназия №25» г. Нижнекамска Республики Татарстан","Файзрахманова","Рузиля","Ильдаровна",9,"2003-12-07","Ж",33,56,null,"Кузьмина Галина Алексеевна","МБОУ «Гимназия №25» г. Нижнекамска Республики Татарстан"]
[27,"Казань","МБОУ «Гимназия №6»","Бикбаев","Азат","Радиславович",9,"2003-04-22","М",32.5,56,null,"Сафиуллина Гулия Минсаетовна"," МБОУ «Гимназия №6» "]
[28,"Зеленодольский","Лицей-интернат для одаренных детей с углубленным изучением химии - филиал ФГБОУ ВО «КНИТУ» ЗМР РТ","Гатиятова","Диана","Алмазовна",9,"2003-05-15","Ж",32.5,56,null,"Валеева Люция Равилевна","Лицей-интернат для одаренных детей с углубленным изучением химии - филиал ФГБОУ ВО «КНИТУ» ЗМР РТ"]
[29,"Казань","Лицей-интернат «IТ-лицей К(П)ФУ»","Николаева","Софья","Владиславовна",9,"2003-02-18","Ж",32.5,56,null,"Болгарский Константин Георгиевич","«IТ-лицей К(П)ФУ» "]
[30,"Актанышский","ГАОУ \"Гуманитарная гимназия-интернат для одаренных детей\"","Хурмаева","Рузалия","Махтумяновна",9,"2003-07-21","ж",32.5,56,null,"Шагзамова Энже Фирдависовна","ГАОУ \"Гуманитарная гимназия-интернат для одаренных детей\""]
[31,"Казань","Лицей №35 - образовательный центр «Галактика»","Шарафутдинова","Алсу","Ряфхатовна",9,"2003-01-13","Ж",32.5,56,null,"Чеканова Гульнара Магсумовна","МБОУ \"Лицей №35 \""]
[32,"Зеленодольский","МБОУ  «СОШ №11 ЗМР РТ»","Гарифуллина","София","Ильдусовна",9,"2003-01-09","Ж",32,56,null,"Шарафиева Фирая Фаатовна","МБОУ  «СОШ №11 ЗМР РТ»"]
[33,"Набережные Челны","Муниципальное автономное общеобразовательное учреждение \"Лицей № 78 им. А.С.Пушкина\"","Карасева","Елизавета","Евгеньевна",9,"2003-08-28","Ж",32,56,null,"Лерман Ирина Викторовна","Муниципальное автономное общеобразовательное учреждение \"Лицей № 78 им. А.С.Пушкина\""]
[34,"Нижнекамский","МБОУ «Лицей-интернат №24» Нижнекамского муниципального района Республики Татарстан","Зарипов","Ильдар","Ильгамович",9,"2003-11-23","М",31,56,null,"Вильдеева Татьяна Александровна","МБОУ «Лицей-интернат №24» Нижнекамского муниципального района Республики Татарстан"]
[35,"Бугульминский","МБОУ лицей №2 Бугульминского муниципального района Республики Татарстан","Табачная ","Дарья","Андреевна",9,"2003-08-06","Ж",31,56,null,"Карсакова Эльна Борисовна","МБОУ лицей №2 Бугульминского муниципального района Республики Татарстан"]
[36,"Пестречинский","МБОУ «Пестречинская средняя общеобразовательная школа № 1       с углубленным изучением отдельных предметов\" ","Харитонова","Анастасия","Петровна",9,"2003-02-12","Ж",31,56,null,"Фурсова Татьяна Николаевна","МБОУ «Пестречинская средняя общеобразовательная школа № 1       с углубленным изучением отдельных предметов\" "]
[37,"Альметьевский","Муниципальное бюджетное общеобразовательное учреждение «Средняя общеобразовательная школа №12» г.Альметьевска Республики Татарстан","Дущенко ","Полина","Александровна",9,"2003-10-19","Ж",30.5,56,null,"Гусарова Елена Ильинична","Муниципальное бюджетное общеобразовательное учреждение «Средняя общеобразовательная школа №12» г.Альметьевска Республики Татарстан"]
[38,"Казань","МБОУ «Гимназия №6»","Кислова","Альбина","Олеговна",9,"2003-01-26","Ж",30.5,56,null,"Ахметзянова Рашида Рауфовна","МБОУ «Гимназия №6» "]

{"sheet":"8","index":3,"n_rows":38,"n_cols":14,"rows_kept":38}
[]
[null,"Список приглашённых на РЭ  РОШ по русскому языку  8 класс. 2018-2019 уч.год "]
[]
["№","Муниципалитет","Полное наименование ОУ по уставу","Фамилия","Имя","Отчество","Класс","Дата рождения","Пол","Итоговый балл","Максимальный балл","Статус","Фамилия, имя, отчество педагога, подготовившего участника олимпиады","Полное наименование образовательного учреждения (по уставу)"]
[1,"Верхнеуслонский район","Государственное автономное общеобразовательное учреждение \"Лицей Иннополис\"","Гарипов","Фаргат","Ильшатович",8,"2004-04-03","М",35,58,"Победитель ЗЭ РОШ 2017/2018 уч.год","Тихонов Алексей Анатольевич","Государственное автономное общеобразовательное учреждение \"Лицей Иннополис\""]
[2,"Набережные Челны","Муниципальное автономное общеобразовательное учреждение \"Лицей № 78 им. А.С. Пушкина\"","Алимова","Полина","Игоревна",8,"2004-01-06","Ж",42,58,"Призер ЗЭ РОШ 2017/2018 уч.год","Барыбина Татьяна Владимировна","Муниципальное автономное общеобразовательное учреждение \"Лицей № 78 им. А.С. Пушкина\""]
[3,"Казань","МБОУ «Гимназия №7» Ново-Савиновского района г.Казани. Школа-центр компетенции в электронном образовании","Ляхова","Анна","Алексеевна",8,"2004-11-24","Ж",38,58,"Призер ЗЭ РОШ 2017/2018 уч.год","Серебрякова Наталья Викторовна","МБОУ «Гимназия №7» Ново-Савиновского района г.Казани. Школа-центр компетенции в электронном образовании "]
[4,"Набережные Челны","Муниципальное автономное общеобразовательное учреждение \"Гимназия № 76\"","Аксакова","Алиса","Алексеевна",8,"2004-12-25","Ж",37.5,58,"Призер ЗЭ РОШ 2017/2018 уч.год","Файрушина Нина Борисовна","Муниципальное автономное общеобразовательное учреждение \"Гимназия № 76\""]
[5,"Актанышский","ГАОУ \"Гуманитарная гимназия-интернат для одаренных детей\"","Валиева","Нафиса","Ленисовна",8,"2004-08-09","ж",36,58,"Призер ЗЭ РОШ 2017/2018 уч.год","Шагзамова Энже Фирдависовна","ГАОУ \"Гуманитарная гимназия-интернат для одаренных детей\""]
[6,"Бугульминский","МБОУ лицей №2 Бугульминского муниципального района Республики Татарстан","Цуканов ","Максим","Александрович",8,"2004-04-28","М",33,58,"Призер ЗЭ РОШ 2017/2018 уч.год","Латыпова Светлана Равилевна","МБОУ лицей №2 Бугульминского муниципального района Республики Татарстан"]
[7,"Нурлатский","МБОУ \"Кульбаево)марасинская средняя общеобразовательная школа НМР РТ\"","Галиуллина","Руфина","Робертовна",8,"2005-02-12","Ж",32.2,58,"Призер ЗЭ РОШ 2017/2018 уч.год","Насибуллина Гузал раисовна","МБОУ \"Кульбаево-Марасинская средняя общеобразовательная школа НМР РТ\""]
[8,"Мамадышский","Муниципальное бюджетное общеобразовательное учреждение \"Средняя общеобразовательная школа №1 г.Мамадыш\" Мамадышского муниципального района Республики Татарстан","Гарифуллина","Айсылу","Альбертовна",8,"2004-07-07","Ж",30,58,"Призер ЗЭ РОШ 2017/2018 уч.год","Сафуанова Ильнара Нурмухаметовна","Муниципальное бюджетное общеобразовательное учреждение \"Средняя общеобразовательная школа №1 г.Мамадыш\" Мамадышского муниципального района Республики Татарстан"]
[9,"Зеленодольский","МБОУ «Гимназия №3» ЗМР РТ","Сафин","Арсений","Алексеевич",8,"2004-05-11","М",30,58,"Призер ЗЭ РОШ 2017/2018 уч.год","Коновалова Людмиоа Владимировна","МБОУ «Гимназия №3» ЗМР РТ"]
[10,"Казань","Гимназия 21 г.Казань","Яшин","Артем","Константинович",8,"2004-01-01","М",47,58,null,"Гизатуллина Резеда Газизовна","Гимназия 21 г.Казань"]
[11,"Нижнекамский","МБОУ «Гимназия №32» г. Нижнекамска Республики Татарстан","Короткова","Арина","Владиславовна",8,"2004-05-19","Ж",41.5,58,null,"Бадуртдинова Гульшат Ханафеевна","МБОУ «Гимназия №32» г. Нижнекамска Республики Татарстан"]
[12,"Казань","МБОУ «Гимназия №122 имени Ж.А Зайцевой»","Никитина","Дарья","Дмитриевна",8,"2004-12-06","Ж",40.5,58,null,"Киселева Оксана Вячеславовна","МБОУ «Гимназия №122 имени Ж.А Зайцевой» "]
[13,"Казань","МБОУ «Татарская гимназия №17 имени Г.Ибрагимова»","Тимуршина","Алина","Ринатовна",8,"2004-07-27","Ж",40.5,58,null,"Ахметгалиева Алсу Рамазановна","МБОУ «Татарская гимназия №17 имени Г.Ибрагимова» "]
[14,"Нижнекамский","МБОУ «Лицей №35» г. Нижнекамска Республики Татарстан","Балашова","Софья","Дмитриевна",8,"2004-04-27","Ж",39.5,58,null,"Ижбалдина Людмила Алексеевна","МБОУ «Лицей №35» г. Нижнекамска Республики Татарстан"]
[15,"Казань","МБОУ «Средняя общеобразовательная школа №167 с углубленным изучением отдельных предметов»","Мухаметзянова","Алина","Асгатовна",8,"2004-06-01","Ж",39,58,null,"Нигматуллина Альбина Сабаховна","МБОУ «Средняя общеобразовательная школа №167 с углубленным изучением отдельных предметов» "]
[16,"Нижнекамский","МБОУ «Гимназия №32» г. Нижнекамска Республики Татарстан","Аксёнова","Марина","Ивановна",8,"2004-09-26","Ж",38.5,58,null,"Пузикова Ольга Сергеевна","МБОУ «Гимназия №32» г. Нижнекамска Республики Татарстан"]
[17,"Лаишевский","МБОУ \"Сокуровская сош им. Г.Р.Державина","Новиков","Илья","Анатольевич",8,"18.06. 2004","М",38.5,58,null,"Габдуллина Г.Р.","мБОУ \"Сокуровская СОШ им. Г.Р.Державина\""]
[18,"Набережные Челны","Муниципальное автономное общеобразовательное учреждение \"Лицей № 78 им. А.С. Пушкина\"","Руднева ","Анастасия","Михайловна",8,"2004-11-03","Ж",38,58,null,"Федченкова Елена Николаевна","Муниципальное автономное общеобразовательное учреждение \"Лицей № 78 им. А.С. Пушкина\""]
[19,"Казань","МАОУ «Лицей-интернат №7»","Шаймарданов","Булат","Ильшатович",8,"2004-08-24","М",37.5,58,null,"Заславская Елена Анатольевна","   МАОУ «Лицей-интернат №7» "]
[20,"Заинский","Муниципальное бюджетное общеобразовательное учреждение \"Заинская средняя общеобразовательная школа №2\" Заинского муниципального района Республики Татарстан","Козлова","Наталья","Витальевна",8,"2004-04-15","ж",37,58,null,"Данилова Валентина Алекчандровна","Муниципальное бюджетное общеобразовательное учреждение \"Заинская средняя общеобразовательная школа №2\" Заинского муниципального района Республики Татарстан"]
[21,"Казань","МБОУ «Средняя общеобразовательная татарско-русская школа №23 с углубленным изучением отдельных предметов»","Бородина","Ксения","Сергеевна",8,"2004-03-11","Ж",36.5,58,null,"Шайхутдинова Динара Шамильевна"," МБОУ «Средняя общеобразовательная татарско-русская школа №23 с углубленным изучением отдельных предметов» "]
[22,"Казань","МБОУ «Средняя общеобразовательная школа №144 с углубленным изучением отдельных предметов»","Краева","Карина","Александровна",8,"2004-09-14","Ж",36.5,58,null,"Гараева Ляля Садреевна","МБОУ «Средняя общеобразовательная школа №144 с углубленным изучением отдельных предметов» "]
[23,"Казань","МАОУ «Гимназия №139»","Шишляева","Ксения","Александровна",8,"2004-07-11","Ж",35.5,58,null,"Кириллова Людмила Владимировна","МБОУ «Татарско-русская средняя общеобразовательная школа №10 с углубленным изучением отдельных предметов» "]
[24,"Казань","МБОУ «Гимназия №94»","Давлетшина","Лия","Рушановна",8,"2004-02-27","Ж",35,58,null,"Сафарова Ляля Закареевна","           МБОУ «Гимназия №94» "]
[25,"Бугульминский","МБОУ  средняя общеобразовательная школа№ 6   Бугульминского  муниципального  района РТ","Латыпова ","Алина","Ринатовна",8,"2004-04-04","Ж",35,58,null,"Панина Марина Вячеславовна","МБОУ  средняя общеобразовательная школа№ 6   Бугульминского  муниципального  района РТ"]
[26,"Нижнекамский","МБОУ «Гимназия №25» г. Нижнекамска Республики Татарстан","Галимова ","Ева","Нилевна",8,"2004-07-28","Ж",34.5,58,null,"Гайнутдинова Гульнара Зуфаровна","МБОУ «Гимназия №25» г. Нижнекамска Республики Татарстан"]
[27,"Нижнекамский","МБОУ «Лицей №35» г. Нижнекамска Республики Татарстан","Исламгалиева","Алия","Рустамовна",8,"2004-06-28","Ж",34,58,null,"Садыкова Гульнар Шарифзяновна","МБОУ «Лицей №35» г. Нижнекамска Республики Татарстан"]
[28,"Нижнекамский","МБОУ «Лицей №35» г. Нижнекамска Республики Татарстан","Курмышкина","Арина","Валерьевна",8,"2004-06-12","Ж",33.5,58,null,"Тихонова Ирина Николаевна","МБОУ «Лицей №35» г. Нижнекамска Республики Татарстан"]
[29,"Казань","МБОУ «Гимназия №52»","Гарипова ","Диана ","Алмазовна",8,"2004-04-14","Ж",33,58,null,"Гайнуллина Ильсия Рафкатовна","МБОУ «Русско-татарская средняя общеобразовательная школа №129» "]
[30,"Лениногорский","МБОУ \"СОШ №10 г.Лениногорска\" МО \"Лениногорский муниципальный район\" РТ","Кашапова","Илина","Айратовна",8,"2004-04-23","ж",33,58,null,"Вильданова Альбина Альбертовна","МБОУ \"СОШ №10 г.Лениногорска\" МО \"Лениногорский муниципальный район\" РТ"]
[31,"Казань","МАОУ «Средняя общеобразовательная школа №141 с углубленным изучением отдельных предметов»","Сергеева","Галина","Владимировна",8,"2004-06-16","Ж",33,58,null,"Кочемасова Анна Алексеевна","МАОУ «Средняя общеобразовательная школа №141 с углубленным изучением отдельных предметов» "]
[32,"Казань","МАОУ «Гимназия №19»","Судьина","Алиса","Денисовна",8,"2004-11-27","Ж",33,58,null,"Нурутдинова Галия Юнусовна"," Международная школа "]
[33,"Казань","МБОУ «Гимназия №94»","Хамитова","Ильмира","Равильевна",8,"2004-04-11","Ж",33,58,null,"Сафарова Ляля Закареевна","   МБОУ «Гимназия №94» "]
[34,"Казань","МБОУ «Гимназия №179»","Хисматова","Алия","Ильшатовна",8,"2004-10-14","Ж",33,58,null,"Денисова Юлия Валерьевна","МБОУ «Гимназия №179» "]